[Event "Reykjavik Open 2024"]
[Site "Reykjavik"]
[Date "2024.03.18"]
[Round "6.13"]
[White "Harish, Neeraj"]
[Black "Balakrishnan, Praveen"]
[Result "0-1"]
[ECO "B48"]
[WhiteElo "2090"]
[BlackElo "2490"]
[Annotator "TA"]
[PlyCount "68"]
[EventDate "2024.03.12"]
[EventCountry "ISL"]
[SourceTitle "playchess.com"]
[Source "ChessBase"]
[SourceQuality "1"]
[TimeControl "40/5400+30:1800+30"]

{[%evp 11,68,22,24,12,13,20,1,-15,-4,0,-12,-7,26,8,0,-31,-21,-103,-40,-33,-39,-77,-103,-88,-103,-179,-171,-267,-265,-435,-432,-666,-441,-742,-724,-775,-766,-742,-500,-489,-476,-772,-569,-552,-545,-519,-529,-527,-526,-520,-518,-514,-496,-704,-527,-526,-508,-504,-500]} 1. e4 {[%emt 0:00:03]} c5 {[%emt 0:13:56]} 2. Nf3 {[%emt 0:00:16]} e6 {[%emt 0:00:06]} 3. d4 {[%emt 0:00:07]} cxd4 {[%emt 0:00:06]} 4. Nxd4 {[%emt 0:00:06]} Nc6 {[%emt 0:00:05]} 5. Nc3 {[%emt 0:00:06]} Qc7 {[%emt 0:00:05]} 6. Be3 {[%emt 0:01:26]} a6 {[%emt 0:00:10]} 7. g4 {[%emt 0:00:44]} h6 {[%emt 0:00:14]} 8. Qd2 {[%emt 0:02:39]} Ne5 {[%emt 0:00:30][%cal Og8f6]} 9. Be2 {[%emt 0:05:52] Die Stellung ist ausgeglichen.} b5 {[%emt 0:00:33]} 10. O-O-O {[%emt 0:01:57]} Nf6 {[%emt 0:04:12][%cal Ob5b4] ...b4! wäre nun fies.} 11. f3 {[%emt 0:00:49]} b4 {[%emt 0:00:23]} 12. Na4 {[%emt 0:02:08]} d5 {[%emt 0:01:26]} 13. Nb3 {[%emt 0:05:44]} (13. h4 $5 dxe4 14. Nb6 Qxb6 15. Nc6 Nd3+ (15... Qxc6 16. Qd8#) 16. Bxd3 $11) 13... Bb7 {[%emt 0:01:47]} 14. Nac5 {[%emt 0:12:02] [#]} (14. exd5 $11 Nxd5 15. Bc5) 14... dxe4 {[%emt 0:01:13]} (14... Nc4 $1 $17 {[%cal Rc4d2]} 15. Bxc4 (15. Qxb4 Nxe3 16. Qxb7 Qxb7 $11) 15... dxc4 16. Qxb4 cxb3 17. Qxb7 Qxb7 18. Nxb7 bxa2) 15. Nxb7 $15 {[%emt 0:08:16]} (15. Qxb4 exf3 16. Qxb7 Qxb7 17. Nxb7 fxe2 $17) 15... Qxb7 {[%emt 0:02:48]} 16. f4 {[%emt 0:07:15]} Nf3 {[%emt 0:28:21] Schwarz führt seinen Vorteil zum Gewinn.} 17. Bxf3 {[%emt 0:01:58]} (17. Na5 $2 Qc7 18. Bxf3 exf3 $19 (18... Qxa5 $2 19. Bxe4 Nd5 20. Bxd5 $18)) 17... exf3 {[%emt 0:00:10]} 18. f5 {[%emt 0:07:16] [#]} (18. g5 $17 hxg5 19. fxg5) 18... Be7 $1 $19 {[%emt 0:05:38]} (18... Nxg4 19. fxe6 fxe6 20. Qd3 $15) 19. Nc5 {[%emt 0:04:57]} (19. fxe6 {ist wohl besser.} O-O (19... fxe6 $2 20. Nd4 $19) 20. exf7+ Rxf7 21. Rhg1) 19... Qc6 {[%emt 0:05:25]} 20. fxe6 $2 {[%emt 0:00:47]} (20. Nd3) 20... Bxc5 {[%emt 0:02:32] Schwarz steht klar auf Gewinn.} 21. g5 {[%emt 0:05:18]} (21. Bxc5 $142 Qxc5 22. exf7+ Kxf7 23. Qd4 Qxd4 24. Rxd4) 21... Ne4 {[%emt 0:05:18]} 22. exf7+ {[%emt 0:00:53]} (22. Qd7+ $142 Qxd7 23. exd7+ Kd8 24. Bxc5 Nxc5 25. Rhf1 hxg5 (25... Nxd7 $2 26. Rxf3 Rf8 27. gxh6 $19) 26. Rxf3) 22... Kxf7 {[%emt 0:00:52]} 23. Qd3 {[%emt 0:05:25]} Rhd8 {[%emt 0:01:07]} (23... Nxg5 $2 24. Qf5+ Kg8 25. Bxc5 $17) 24. Qb3+ {[%emt 0:01:23]} Qe6 {[%emt 0:01:20]} 25. g6+ {[%emt 0:01:00]} Kf6 {[%emt 0:00:17]} (25... Kxg6 26. Qxe6+ Kh5 27. Qf7+ (27. Qxe4 Bxe3+ 28. Qxe3 f2 $18) 27... Kh4 28. Qf4+ (28. Qxf3 Bxe3+ 29. Qxe3 Rxd1+ 30. Rxd1 Ng5 $18) 28... Kh5 29. Qxf3+ (29. Qxe4 Bxe3+ 30. Qxe3 f2 $18) 29... Kg6 30. Qxe4+ Kh5 31. Bxc5) 26. Rdf1 {[%emt 0:05:11]} (26. Bxc5 $142 Qxb3 (26... Nxc5 $2 27. Qxf3+ Kxg6 28. Rde1 $19) 27. axb3 Rxd1+ (27... Nxc5 $2 28. Rdf1 $19) (27... Kxg6 $2 28. Bd4 $19) 28. Rxd1 Nxc5 29. Rf1) 26... Qxb3 {[%emt 0:01:49]} 27. Rxf3+ {[%emt 0:00:05]} Kxg6 {[%emt 0:00:26]} 28. axb3 {[%emt 0:00:13]} Rf8 {[%emt 0:00:37]} 29. Rh3 {[%emt 0:00:41]} Rae8 {[%emt 0:01:10]} 30. Bxc5 {[%emt 0:00:39]} Nxc5 {[%emt 0:00:08]} 31. Rg1+ {[%emt 0:00:41]} Kh7 {[%emt 0:00:14] Und ...Re2 würde nun gewinnen.} 32. c3 {[%emt 0:01:25]} (32. Rhg3 $142 g5 33. R3g2) 32... bxc3 {[%emt 0:00:32]} 33. Rxc3 {[%emt 0:00:07]} Rc8 {[%emt 0:00:32]} 34. Kb1 {[%emt 0:00:17]} Ne4 {[%emt 0:00:06] Gewichteter Fehlerwert: Weiß=0.68/Schwarz=0.64.  Fehler:       	Weiß=8     	Schwarz=1     Ungenau:       	Weiß=2     	Schwarz=1     OK:         	Weiß=7     	Schwarz=10    Bester:       	Weiß=1     	Schwarz=2} 0-1

[Event "Reykjavik Open 2024"]
[Site "Reykjavik"]
[Date "2024.03.18"]
[Round "6.14"]
[White "Sanitt, Ethan"]
[Black "Kjartansson, Gudmundur"]
[Result "0-1"]
[ECO "A25"]
[WhiteElo "1914"]
[BlackElo "2465"]
[Annotator "TA"]
[PlyCount "76"]
[EventDate "2024.03.12"]
[EventCountry "ISL"]
[SourceTitle "playchess.com"]
[Source "ChessBase"]
[SourceQuality "1"]
[TimeControl "40/5400+30:1800+30"]

{[%evp 9,76,0,15,3,14,0,12,0,10,9,29,17,14,14,15,12,41,-4,-7,-31,-31,-33,-34,-57,-53,-98,-100,-106,-74,-124,-118,-127,-82,-91,-91,-85,-65,-97,-66,-199,-200,-197,-225,-206,-208,-220,-124,-447,-462,-449,-439,-453,-476,-462,-473,-487,-460,-505,-517,-642,-641,-660,-659,-1133,-1105,-1174,-1173,-1150,-1139]} 1. c4 {[%emt 0:00:02]} e5 {[%emt 0:00:19]} 2. g3 {[%emt 0:00:19]} Nc6 {[%emt 0:01:32]} 3. Nc3 {[%emt 0:00:23]} Bc5 {[%emt 0:00:19]} 4. d3 {[%emt 0:02:41]} Nge7 {[%emt 0:02:46]} 5. Nf3 {[%emt 0:02:17]} d6 {[%emt 0:00:43]} 6. Bg2 {[%emt 0:01:17]} a6 {[%emt 0:00:37]} 7. a3 {[%emt 0:00:22]} O-O {[%emt 0:01:57]} 8. b4 {[%emt 0:00:43] The position is equal.} Ba7 {[%emt 0:02:56]} 9. O-O {[%emt 0:00:36]} Be6 {[%emt 0:06:04]} 10. e3 {[%emt 0:00:58]} Qd7 {[%emt 0:02:56]} 11. Bb2 {[%emt 0:01:08]} f6 {[%emt 0:06:16]} 12. Rc1 {[%emt 0:01:18]} d5 {[%emt 0:04:16]} 13. c5 {[%emt 0:09:36]} Rae8 {[%emt 0:02:36]} 14. b5 {[%emt 0:07:31]} axb5 {[%emt 0:00:31]} 15. Nxb5 {[%emt 0:00:25]} Bb8 {[%emt 0:00:28]} 16. Ne1 {[%emt 0:03:59]} Nd8 {[%emt 0:01:56]} 17. Qa4 {[%emt 0:01:11]} c6 {[%emt 0:01:08]} 18. Nc3 {[%emt 0:01:27]} Nf7 {[%emt 0:05:51]} 19. f4 {[%emt 0:04:22]} (19. Qb4 $142) 19... Bc7 $17 {[%emt 0:04:09]} 20. e4 {[%emt 0:13:15]} Ra8 {[%emt 0:13:10]} 21. Qc2 {[%emt 0:02:09]} exf4 {[%emt 0:05:36]} 22. gxf4 {[%emt 0:00:31]} dxe4 {[%emt 0:00:09]} 23. dxe4 {[%emt 0:03:47]} Bc4 {[%emt 0:00:51] Black is more active.} (23... Rfd8 {simplifies} 24. Rd1 Qe8 25. Rxd8 Rxd8 26. Rf3 Bc4) 24. Rd1 {[%emt 0:06:02]} (24. Ne2 $15 Bb5 25. f5) 24... Qe6 $19 {[%emt 0:03:13]} 25. f5 {[%emt 0:03:33]} Qe5 {[%emt 0:00:57]} 26. Nf3 {[%emt 0:00:39]} Qxc5+ {[%emt 0:00:25]} 27. Rf2 {[%emt 0:01:41]} Rad8 {[%emt 0:08:01]} (27... b5 $19 {...Rfd8 is the strong threat.} 28. Kh1 Rfd8) 28. Nd4 $2 {[%emt 0:03:59][%mdl 8192]} Rxd4 {[%emt 0:04:57] Black is clearly winning.} 29. Rxd4 {[%emt 0:00:06]} Qxd4 {[%emt 0:00:03]} 30. Nd5 {[%emt 0:00:14] [#] Inhibits Qe3.} Qxf2+ $3 {[%emt 0:01:00]} 31. Qxf2 {[%emt 0:01:42]} cxd5 {[%emt 0:00:04]} 32. exd5 {[%emt 0:00:42]} Nd6 {[%emt 0:04:01][%cal Of8a8]} (32... Bxd5 $2 33. Bxf6 gxf6 34. Bxd5 $19) ({Don't play} 32... Nxd5 33. Bd4 $19) 33. Qc5 {[%emt 0:03:54]} Rc8 {[%emt 0:00:51][%cal Od6f5]} 34. Qe3 {[%emt 0:00:11]} Nexf5 {[%emt 0:03:01]} ({Inferior is} 34... Nxd5 35. Qe6+ Kh8 36. Bxd5 $11) 35. Qe6+ {[%emt 0:00:52]} Kf8 {[%emt 0:00:44]} 36. Bc3 {[%emt 0:04:38]} Re8 {[%emt 0:00:36]} 37. Qd7 {[%emt 0:00:00]} Bb6+ {[%emt 0:00:27]} 38. Kh1 {[%emt 0:00:00]} Bb5 {[%emt 0:00:05] Weighted Error Value: White=0.64/Black=0.14 (very precise) .  Loses game:     	White=1     	---        Mistake:       	White=2     	Black=1      Inaccurate:     	White=3     	Black=4      OK:         	White=8     	Black=12     Best:        	White=1     	---        Brilliant:      	---       	Black=1} 0-1

[Event "Reykjavik Open 2024"]
[Site "Reykjavik"]
[Date "2024.03.18"]
[Round "6.15"]
[White "Hjartarson, Johann"]
[Black "Sushanth Kamabathula"]
[Result "1/2-1/2"]
[ECO "E92"]
[WhiteElo "2460"]
[BlackElo "1918"]
[Annotator "TA"]
[PlyCount "116"]
[EventDate "2024.03.12"]
[EventCountry "ISL"]
[SourceTitle "playchess.com"]
[Source "ChessBase"]
[SourceQuality "1"]
[TimeControl "40/5400+30:1800+30"]

{[%evp 23,116,37,46,29,48,47,68,70,83,92,90,78,103,75,81,62,143,47,83,96,116,110,126,104,97,96,97,110,96,102,96,92,158,146,153,108,111,88,77,36,87,57,68,12,11,10,16,7,32,29,29,29,22,17,25,26,43,41,33,0,0,-2,0,0,0,0,0,-48,0,-47,-40,-45,0,-12,15,18,12,0,4,11,68,56,56,56,70,42,42,0,0,0,0,0,0,0,0]} 1. c4 {[%emt 0:03:08]} Nf6 {[%emt 0:00:14]} 2. Nc3 {[%emt 0:00:49]} g6 {[%emt 0:00:08]} 3. e4 {[%emt 0:01:03]} d6 {[%emt 0:00:25]} 4. d4 {[%emt 0:00:11]} Bg7 {[%emt 0:00:12]} 5. Nf3 {[%emt 0:00:10]} O-O {[%emt 0:00:23]} 6. Be2 {[%emt 0:00:05]} e5 {[%emt 0:00:13]} 7. d5 {[%emt 0:00:11]} Nbd7 {[%emt 0:01:42]} 8. Be3 {[%emt 0:02:26]} a5 {[%emt 0:03:11]} 9. O-O {[%emt 0:01:43]} Ng4 {[%emt 0:01:44]} 10. Bg5 {[%emt 0:00:13]} f6 {[%emt 0:00:41]} 11. Bh4 {[%emt 0:01:48]} Nc5 {[%emt 0:01:03]} 12. Nd2 {[%emt 0:00:53]} Nh6 {[%emt 0:00:24]} 13. f3 {[%emt 0:02:18]} b6 {[%emt 0:02:58]} 14. b3 {[%emt 0:04:13][%cal Bb2b3,Bb3b4][%mdl 32]} Rf7 {[%emt 0:05:37]} 15. a3 {[%emt 0:02:09] White is slightly better.} Bf8 {[%emt 0:00:40]} 16. b4 {[%emt 0:01:11]} Nb7 {[%emt 0:00:50]} 17. Nb3 {[%emt 0:02:59]} Qe8 {[%emt 0:02:20]} 18. Bf2 {[%emt 0:05:07]} f5 {[%emt 0:06:58]} 19. c5 {[%emt 0:04:45]} fxe4 {[%emt 0:01:08]} (19... dxc5 $14 20. bxc5 Nxc5) 20. Bb5 {[%emt 0:03:21]} (20. Nxe4 a4 $14) (20. fxe4 $6 dxc5 21. bxa5 Nxa5 $11) (20. cxb6 exf3 21. Bxf3 axb4 22. axb4 Rxa1 23. Qxa1 cxb6 $16) (20. c6 $16 Nd8 21. fxe4 (21. Nxe4 Nf5 $18)) 20... Qe7 {[%emt 0:01:11]} 21. Nxe4 {[%emt 0:00:30]} (21. cxb6 exf3 22. gxf3 Bh3) 21... a4 {[%emt 0:07:50]} 22. Nbd2 {[%emt 0:00:42]} (22. cxd6 {simplifies} Nxd6 23. Nxd6 cxd6 24. Nd2) 22... bxc5 {[%emt 0:00:20]} 23. bxc5 {[%emt 0:00:09]} Nxc5 {[%emt 0:00:50]} 24. Nxc5 {[%emt 0:01:30]} dxc5 {[%emt 0:00:28]} 25. Ne4 {[%emt 0:02:14]} Nf5 {[%emt 0:02:46] Prevents Be3} 26. Bc6 {[%emt 0:03:27] White has more active pieces.} (26. Nxc5 Ra5 27. Qd3 (27. Bxa4 $2 Rxc5 28. Re1 Rc3 $19) 27... Nd4 28. Bxd4 exd4 $15) 26... Rb8 {[%emt 0:04:47]} 27. Bxc5 {[%emt 0:01:21]} ({Don't play} 27. Nxc5 Nd4 28. Ne4 (28. Nxa4 Qg5 $15) 28... Bf5 $14) 27... Nd6 {[%emt 0:00:41]} ({Black should try} 27... Qd8) 28. Qxa4 $16 {[%emt 0:02:29]} Bf5 {[%emt 0:01:49]} 29. Rae1 {[%emt 0:03:28][%cal Ba1e1,Be1e4,Be4g4][%mdl 32]} Bxe4 {[%emt 0:03:15]} 30. Rxe4 {[%emt 0:00:46]} Qg5 {[%emt 0:01:59]} 31. Rg4 {[%emt 0:02:28]} (31. Ree1 $5) 31... Qd2 {[%emt 0:02:17]} ({Better is} 31... Qf5 $1 $14) 32. Qd1 {[%emt 0:02:26]} Qa5 {[%emt 0:10:39]} 33. Bxd6 {[%emt 0:12:54]} (33. Bb4 $14 Qb6+ 34. Kh1) 33... Bxd6 $11 {[%emt 0:00:30]} 34. a4 {[%emt 0:00:20]} Rb2 {[%emt 0:01:25]} 35. Kh1 {[%emt 0:01:47]} Rf8 {[%emt 0:03:58]} 36. Qc1 {[%emt 0:01:44]} Rfb8 {[%emt 0:08:03]} 37. Bb5 {[%emt 0:00:42]} Qd2 {[%emt 0:00:48]} 38. h4 {[%emt 0:11:52][%cal Bh2h4,Bh4h5][%mdl 32]} Qxc1 {[%emt 0:03:29]} 39. Rxc1 {[%emt 0:00:03]} Ra2 {[%emt 0:00:19]} 40. h5 {[%emt 0:05:20]} Kf7 {[%emt 0:00:38]} 41. h6 {[%emt 0:31:45]} Kf6 {[%emt 0:30:51]} 42. Rgc4 {[%emt 0:06:33]} Rb7 {[%emt 0:06:36]} 43. Rg4 {[%emt 0:01:20]} Rb6 {[%emt 0:01:32]} 44. Kg1 {[%emt 0:05:05]} Rd2 {[%emt 0:01:57]} 45. Bc6 {[%emt 0:01:48]} (45. Kf1 $11) 45... Ra2 {[%emt 0:03:37]} (45... Rbb2 $15 {is superior.}) 46. Kf1 {[%emt 0:00:00]} (46. Bb5 $11 {feels stronger.}) 46... Rbb2 $15 {[%emt 0:00:00][%cal Od6c5][%mdl 1024] [#] ...Bc5! would now be deadly. Black has compensation.} 47. Kg1 $1 {[%emt 0:00:00]} Rb6 {[%emt 0:00:00]} (47... Rd2 $5) 48. Bd7 {[%emt 0:00:00]} g5 {[%emt 0:00:00]} 49. Bb5 {[%emt 0:00:00]} Kg6 {[%emt 0:00:00]} 50. Rgc4 {[%emt 0:00:00]} Rb7 {[%emt 0:00:00]} 51. R4c2 {[%emt 0:00:00]} Rxc2 {[%emt 0:00:00]} (51... Ra3 $1 $11) 52. Rxc2 $14 {[%emt 0:00:00]} Kxh6 $11 {[%emt 0:00:00][%mdl 4096] Endgame. KRB-KRB} 53. g4 {[%emt 0:00:00]} Kg6 {[%emt 0:00:00]} 54. Bd3+ {[%emt 0:00:00]} Kg7 {[%emt 0:00:00]} 55. a5 {[%emt 0:00:00]} Rb3 {[%emt 0:00:00] The position is equal.} 56. Be2 {[%emt 0:00:00]} Ra3 {[%emt 0:00:00] Wards off Ra2} 57. a6 {[%emt 0:00:00]} e4 {[%emt 0:00:00]} 58. fxe4 {[%emt 0:00:00]} Kf6 {[%emt 0:00:00] Weighted Error Value: White=0.17 (very precise) /Black=0.15 (very precise) .  Mistake:       	White=4     	Black=5      Inaccurate:     	White=5     	Black=3      OK:         	White=17    	Black=18     Best:        	---       	Black=1      Strong:       	White=1     	---} 1/2-1/2

[Event "Reykjavik Open 2024"]
[Site "Reykjavik"]
[Date "2024.03.18"]
[Round "6.16"]
[White "Ivanchuk, Vasyl"]
[Black "Xu, Yuanyuan"]
[Result "1-0"]
[ECO "B19"]
[WhiteElo "2625"]
[BlackElo "2288"]
[Annotator "TA"]
[PlyCount "131"]
[EventDate "2024.03.12"]
[EventCountry "ISL"]
[SourceTitle "playchess.com"]
[Source "ChessBase"]
[SourceQuality "1"]
[TimeControl "40/5400+30:1800+30"]

{[%evp 23,131,16,0,0,0,0,7,-6,31,27,30,31,13,27,27,29,13,27,61,64,64,51,45,47,60,42,48,41,64,64,66,63,61,66,64,60,43,53,89,60,57,70,66,0,95,-20,-17,-20,48,56,137,128,140,136,137,138,153,153,226,205,249,247,262,271,514,458,518,520,486,498,497,437,765,724,1004,986,940,933,861,837,29968,29969,29975,29976,29975,29976,29976,29978,29978,29979,29979,29980,29983,29981,29984,29985,29985,29986,29986,29987,29987,29988,29990,29987,29987,29988,29992,29988,29988,29989]} 1. e4 {[%emt 0:00:02]} c6 {[%emt 0:00:57]} 2. d4 {[%emt 0:00:12]} d5 {[%emt 0:00:06]} 3. Nd2 {[%emt 0:00:02]} dxe4 {[%emt 0:00:12]} 4. Nxe4 {[%emt 0:00:03]} Bf5 {[%emt 0:00:18]} 5. Ng3 {[%emt 0:00:16]} Bg6 {[%emt 0:00:04]} 6. Nf3 {[%emt 0:00:08]} e6 {[%emt 0:00:11]} 7. h4 {[%emt 0:00:10][%cal Bh2h4,Bh4h5][%mdl 32]} h6 {[%emt 0:00:05]} 8. h5 {[%emt 0:00:14]} Bh7 {[%emt 0:00:04]} 9. Bd3 {[%emt 0:00:02]} Bxd3 {[%emt 0:00:10]} 10. Qxd3 {[%emt 0:00:03]} Nf6 {[%emt 0:00:39]} 11. Bd2 {[%emt 0:00:08]} Be7 {[%emt 0:01:51]} 12. O-O-O {[%emt 0:00:15]} O-O {[%emt 0:00:30]} 13. Kb1 {[%emt 0:15:34]} c5 {[%emt 0:03:15]} 14. Ne4 {[%emt 0:00:04]} Nc6 {[%emt 0:00:18]} 15. Be3 {[%emt 0:11:20] The position is equal.} Nb4 {[%emt 0:14:13]} 16. Nxf6+ {[%emt 0:07:44]} Bxf6 {[%emt 0:00:04]} 17. Qb3 {[%emt 0:05:44]} Nd5 {[%emt 0:14:15]} 18. dxc5 {[%emt 0:00:24]} Qa5 {[%emt 0:01:45]} 19. Nd2 {[%emt 0:00:44]} (19. Qxb7 $2 {perishes.} Rab8 $19) 19... Nxe3 {[%emt 0:07:05]} 20. Qxe3 {[%emt 0:00:48]} Qb5 {[%emt 0:08:27][%csl Gf6][%cal Rb5b2]} 21. c3 {[%emt 0:20:10]} b6 {[%emt 0:04:01]} 22. Ne4 {[%emt 0:09:58] Hoping for Nxf6+.} Be7 {[%emt 0:00:49][%cal Rb6c5]} 23. Qd3 {[%emt 0:07:20]} Qc6 {[%emt 0:10:16]} 24. Qf3 {[%emt 0:00:08][%cal Oe4f6] Strongly threatening Nf6+!} Rfc8 {[%emt 0:01:50]} 25. Rd3 {[%emt 0:03:25]} f5 {[%emt 0:06:35]} 26. Nd2 {[%emt 0:03:02] White is more active.} Qxf3 {[%emt 0:04:12]} 27. Nxf3 {[%emt 0:00:05] Black must now prevent cxb6.} Bxc5 {[%emt 0:00:05]} 28. Rd2 {[%emt 0:01:47]} Rd8 {[%emt 0:04:51]} 29. Re2 {[%emt 0:01:57][%cal Oh1e1]} Rd5 {[%emt 0:03:54]} 30. Kc2 {[%emt 0:03:18][%cal Ob2b4]} b5 {[%emt 0:01:06]} 31. Rhe1 {[%emt 0:04:59][%cal Ob2b4]} f4 {[%emt 0:03:34]} 32. b4 {[%emt 0:00:02]} Bb6 {[%emt 0:01:42]} 33. Ne5 {[%emt 0:00:22]} (33. Rd2 $14) 33... Kh7 {[%emt 0:04:18]} (33... a5 $1 $11) 34. g4 {[%emt 0:02:09]} (34. Rd1 $1 $16) 34... fxg3 $11 {[%emt 0:01:15]} 35. fxg3 {[%emt 0:00:01]} Rf8 {[%emt 0:00:30]} (35... a5 $11 36. Nd3 axb4 37. Rxe6 Ba5) 36. g4 $14 {[%emt 0:01:28] Ng6 would now be deadly.} Rf4 {[%emt 0:00:31] White stays focused until the end.} (36... Rc8 $1 $14) 37. Re4 $1 $36 {[%emt 0:00:13][%mdl 2048] White is on the roll.} Rf2+ {[%emt 0:01:48]} 38. R1e2 {[%emt 0:00:08]} Rxe2+ {[%emt 0:00:28]} 39. Rxe2 {[%emt 0:00:00][%mdl 4096] Endgame. KRB-KRN} Kg8 {[%emt 0:00:23]} 40. Kb3 $1 {[%emt 0:01:04]} Kf8 {[%emt 0:00:37]} (40... a6 $16) 41. a4 $1 $18 {[%emt 0:30:12]} a6 {[%emt 0:03:56] [#]} 42. c4 $1 {[%emt 0:00:00]} bxc4+ {[%emt 0:01:00]} 43. Nxc4 {[%emt 0:00:00]} (43. Kxc4 Rd1 $14) 43... Bc7 {[%emt 0:07:08]} (43... Bg1 44. Rxe6 Rd3+ 45. Kc2 Rg3) 44. Rxe6 {[%emt 0:00:00]} Rd3+ {[%emt 0:00:32]} 45. Kc2 {[%emt 0:00:00]} Rd4 {[%emt 0:00:03]} 46. Kc3 {[%emt 0:00:00]} Rxg4 {[%emt 0:00:07]} 47. Rxa6 {[%emt 0:00:00]} Rg5 {[%emt 0:05:23]} (47... Rg3+ $142 48. Kd4 Kg8 49. Ra8+ Kh7) 48. a5 {[%emt 0:00:00][%cal Ba4a5,Ba5a6][%mdl 32]} Bg3 {[%emt 0:02:39]} 49. Ra8+ {[%emt 0:00:00]} Ke7 {[%emt 0:00:28]} 50. a6 {[%emt 0:00:00] a7 is the strong threat.} Be1+ {[%emt 0:01:11]} 51. Kb3 {[%emt 0:00:00] Threatens to win with a7.} Rb5 {[%emt 0:03:09] [#]} 52. Re8+ $3 {[%emt 0:00:00][%mdl 512] White mates.} Kxe8 {[%emt 0:00:56]} 53. Nd6+ {[%emt 0:00:00]} Kd7 {[%emt 0:00:49]} 54. Nxb5 {[%emt 0:00:00] KB-KN} Kc6 {[%emt 0:00:39]} 55. Nd4+ {[%emt 0:00:00]} Kb6 {[%emt 0:00:13] [#]} 56. b5 $1 {[%emt 0:00:00]} Bh4 {[%emt 0:02:08]} 57. Kc4 {[%emt 0:00:00]} Bg5 {[%emt 0:02:22]} 58. Ne6 {[%emt 0:00:00]} Bf6 {[%emt 0:00:19]} 59. Nf4 {[%emt 0:00:00]} Bh4 {[%emt 0:01:23]} 60. Nd5+ {[%emt 0:00:00]} Ka7 {[%emt 0:00:05]} 61. Kc5 {[%emt 0:00:00]} Bf2+ {[%emt 0:00:48]} 62. Kc6 {[%emt 0:00:00]} Bd4 {[%emt 0:01:28]} 63. Nf4 {[%emt 0:00:00]} Bf6 {[%emt 0:03:31]} 64. Ne6 {[%emt 0:00:00]} Be5 {[%emt 0:00:30]} 65. b6+ {[%emt 0:00:00]} Kxa6 {[%emt 0:01:18]} 66. Nc7+ {[%emt 0:00:00] Weighted Error Value: White=0.07 (flawless) /Black=0.28 (precise) .  Mistake:       	White=2     	Black=6      Inaccurate:     	White=1     	Black=4      OK:         	White=15    	Black=16     Best:        	White=2     	Black=2      Strong:       	White=4     	---} 1-0

[Event "Reykjavik Open 2024"]
[Site "Reykjavik"]
[Date "2024.03.18"]
[Round "6.17"]
[White "Galperin, Platon"]
[Black "Unzicker, Ferdinand"]
[Result "1-0"]
[ECO "A07"]
[WhiteElo "2555"]
[BlackElo "2284"]
[Annotator "TA"]
[PlyCount "58"]
[EventDate "2024.03.12"]
[EventCountry "ISL"]
[SourceTitle "playchess.com"]
[Source "ChessBase"]
[SourceQuality "1"]
[TimeControl "40/5400+30:1800+30"]

{[%evp 9,58,16,20,-2,18,15,24,8,52,56,56,52,36,55,69,47,43,35,37,29,31,34,32,16,59,47,71,80,98,72,79,68,100,90,91,96,198,58,122,127,80,72,79,74,79,79,74,89,274,269,419]} 1. Nf3 {[%emt 0:07:15]} d5 {[%emt 0:00:23]} 2. g3 {[%emt 0:00:07]} c6 {[%emt 0:01:58]} 3. Bg2 {[%emt 0:00:07]} Bg4 {[%emt 0:00:25]} 4. h3 {[%emt 0:00:06]} Bh5 {[%emt 0:01:03]} 5. c4 {[%emt 0:00:21]} e6 {[%emt 0:00:42]} 6. O-O {[%emt 0:00:10]} Nd7 {[%emt 0:04:40]} 7. d4 {[%emt 0:00:31]} Bd6 {[%emt 0:08:02]} 8. Nc3 {[%emt 0:01:15] White has an edge.} Ne7 {[%emt 0:00:22]} 9. Qb3 {[%emt 0:05:24]} Qb6 {[%emt 0:09:20]} 10. e4 {[%emt 0:14:39][%cal Re4d5]} Qxb3 {[%emt 0:15:59]} 11. axb3 {[%emt 0:00:04]} O-O {[%emt 0:02:23]} 12. Nh4 {[%emt 0:07:15]} dxe4 {[%emt 0:05:26]} 13. Nxe4 {[%emt 0:00:28]} Bc7 {[%emt 0:01:44]} 14. Bd2 {[%emt 0:03:06][%cal Bc1d2,Bd2b4,Bb4d6][%mdl 32]} Rfd8 {[%emt 0:08:32]} 15. Bb4 {[%emt 0:16:25]} Ng6 {[%emt 0:03:16][%cal Be7g6,Bg6f8,Bf8d7][%mdl 32]} 16. Nf3 {[%emt 0:03:47]} Ngf8 {[%emt 0:01:52] Black is weak on the dark squares} 17. Bd6 {[%emt 0:04:56]} Rdc8 {[%emt 0:01:18] Hoping for ...f5.} 18. Ne5 {[%emt 0:01:50] White is much more active.} f6 {[%emt 0:00:51]} 19. Nxd7 {[%emt 0:00:20]} Nxd7 {[%emt 0:00:14]} 20. Rfe1 {[%emt 0:01:20]} Bf7 {[%emt 0:02:36]} 21. Bxc7 {[%emt 0:03:18]} Rxc7 {[%emt 0:00:02]} 22. Nd6 {[%emt 0:00:10]} a6 {[%emt 0:11:15] [#]} (22... Kf8 $16 {might work better.}) 23. d5 {[%emt 0:10:13]} e5 {[%emt 0:08:22]} (23... cxd5 $14 24. cxd5 exd5) 24. dxc6 $16 {[%emt 0:05:30]} bxc6 {[%emt 0:00:09]} 25. b4 $36 {[%emt 0:00:41][%mdl 2048] Prevents Nc5. Strongly threatening b5. White is in control.} Rb8 {[%emt 0:02:08]} 26. Rxa6 {[%emt 0:00:12]} Rxb4 {[%emt 0:00:30]} 27. Rxc6 {[%emt 0:07:58]} ({Inferior is} 27. Bxc6 Nb8 (27... Rxb2 $2 {loses.} 28. Bxd7 g6 29. Bc6 $18) 28. Nxf7 Nxa6 $17) 27... Rxc6 {[%emt 0:04:33]} 28. Bxc6 {[%emt 0:00:03]} Rb6 $2 {[%emt 0:00:35] [#]} (28... Be6 $16) 29. Nc8 $1 $18 {[%emt 0:00:18]} Bxc4 {[%emt 0:01:58] Weighted Error Value: White=0.13 (very precise) /Black=0.27 (precise) .  Loses game:     	---       	Black=1      Mistake:       	White=1     	Black=3      Inaccurate:     	---       	Black=3      OK:         	White=10    	Black=6      Best:        	White=2     	Black=1      Strong:       	White=1     	---} (29... Rxc6 $2 {is the wrong capture.} 30. Ne7+ Kf8 31. Nxc6) (29... Rxb2 $142 30. Bxd7 Bxc4) 1-0